fUST/lending_fUST_20250920
["ID","MTS","AMOUNT","RATE_DAILY","PERIOD"]
[386456925,1758303930476,-480.0,0.00021168,2]
[386456926,1758303930496,-480.0,0.00021168,2]
[386456927,1758303930517,-501.29,0.00021168,2]
[386456928,1758303930538,-480.0,0.00021168,2]
[386456929,1758303930558,-480.0,0.00021168,2]
[386456930,1758303930578,-480.0,0.00021168,2]
[386456931,1758303930598,-480.0,0.00021168,2]
[386456932,1758303930618,-480.0,0.00021168,2]
[386456933,1758303930639,-480.0,0.00021168,2]
[386456934,1758303930660,-480.0,0.00021168,2]
[386456935,1758303930681,-480.0,0.00021168,2]
[386456936,1758303930701,-480.0,0.00021168,2]
[386456937,1758303930722,-480.0,0.00021168,2]
[386456938,1758303930743,-480.0,0.00021168,2]
[386456939,1758303930763,-480.0,0.00021168,2]
[386456940,1758303930784,-480.0,0.00021168,2]
[386456941,1758303930803,-480.0,0.00021168,2]
[386456942,1758303930824,-480.0,0.00021168,2]
[386456943,1758303930845,-480.0,0.00021168,2]
[386456944,1758303930865,-480.0,0.00021168,2]
[386456945,1758303930884,-420.0,0.00021168,2]
[386456946,1758303930906,-579.03,0.00021168,2]
[386456947,1758303930928,-480.0,0.00021168,2]
[386456948,1758303930952,-480.0,0.00021168,2]
[386456949,1758303930975,-480.0,0.00021168,2]
[386456950,1758303930997,-480.0,0.00021168,2]
[386456951,1758303931019,-480.0,0.00021169,2]
[386456952,1758303931039,-480.0,0.00021169,2]
[386456953,1758303931059,-332.66326573,0.00021169,2]
[386456954,1758303931079,-150.0,0.00021169,2]
[386456955,1758303931100,-480.0,0.00021169,2]
[386456956,1758303931119,-480.0,0.00021169,2]
[386456957,1758303931139,-480.0,0.00021169,2]
[386456958,1758303931163,-480.0,0.00021169,2]
[386456959,1758303931184,-340.56300747,0.00021169,2]
[386456960,1758303931206,-480.0,0.00021169,2]
[386456961,1758303931228,-480.0,0.00021169,2]
[386456962,1758303931250,-480.0,0.00021169,2]
[386456963,1758303931270,-480.0,0.00021169,2]
[386456964,1758303931291,-480.0,0.00021169,2]
[386456965,1758303931312,-480.0,0.00021169,2]
[386456966,1758303931333,-480.0,0.00021169,2]
[386456967,1758303931354,-956.19,0.00021169,2]
[386456968,1758303931373,-481.67519369,0.00021169,2]
[386456969,1758303931393,-480.0,0.00021169,2]
[386456970,1758303931413,-480.0,0.00021169,2]
[386456971,1758303931432,-480.0,0.00021169,2]
[386456972,1758303931451,-505.37,0.00021169,2]
[386456973,1758303931471,-293.98505012,0.00021169,2]
[386456974,1758303931490,-480.0,0.00021169,2]
[386456975,1758303931511,-480.0,0.00021169,2]
[386456976,1758303931531,-482.31474624,0.00021169,2]
[386456977,1758303931558,-480.0,0.00021169,2]
[386456978,1758303931578,-480.0,0.00021169,2]
[386456979,1758303931601,-567.97,0.00021169,2]
[386456980,1758303931622,-447.91463731,0.00021169,2]
[386456981,1758303931643,-480.0,0.00021169,2]
[386456982,1758303931664,-480.0,0.00021169,2]
[386456983,1758303931683,-480.0,0.00021169,2]
[386456984,1758303931703,-480.0,0.00021169,2]
[386456985,1758303931726,-721.43,0.00021169,2]
[386456986,1758303931746,-353.61397931,0.00021169,2]
[386456987,1758303931768,-480.0,0.00021169,2]
[386456988,1758303931788,-480.0,0.00021169,2]
[386456989,1758303931809,-480.0,0.00021169,2]
[386456990,1758303931829,-535.06,0.00021169,2]
[386456991,1758303931847,-480.0,0.00021169,2]
[386456992,1758303931867,-530.27,0.00021169,2]
[386456993,1758303931887,-480.0,0.00021169,2]
[386456994,1758303931907,-480.0,0.00021169,2]
[386456995,1758303931929,-480.0,0.00021169,2]
[386456996,1758303931948,-480.0,0.00021169,2]
[386456997,1758303931967,-480.0,0.00021169,2]
[386456998,1758303931985,-480.0,0.00021169,2]
[386456999,1758303932006,-480.0,0.00021169,2]
[386457000,1758303932025,-480.0,0.00021169,2]
[386457001,1758303932044,-480.0,0.00021169,2]
[386457002,1758303932064,-1094.7,0.00021169,2]
[386457003,1758303932083,-480.0,0.00021169,2]
[386457004,1758303932104,-480.0,0.00021169,2]
[386457005,1758303932126,-480.0,0.00021169,2]
[386457006,1758303932146,-480.0,0.00021169,2]
[386457007,1758303932166,-480.0,0.00021169,2]
[386457008,1758303932188,-480.0,0.00021169,2]
[386457009,1758303932208,-480.0,0.00021169,2]
[386457010,1758303932228,-480.0,0.00021169,2]
[386457011,1758303932248,-480.0,0.00021169,2]
[386457012,1758303932269,-522.06,0.00021169,2]
[386457014,1758303932290,-480.0,0.00021169,2]
[386457015,1758303932311,-480.0,0.00021169,2]
[386457016,1758303932331,-452.19,0.00021169,2]
[386457017,1758303932352,-480.0,0.00021169,2]
[386457018,1758303932372,-480.0,0.00021169,2]
[386457019,1758303932398,-480.0,0.00021169,2]
[386457020,1758303932419,-480.0,0.00021169,2]
[386457021,1758303932440,-480.0,0.00021169,2]
[386457022,1758303932460,-480.0,0.00021169,2]
[386457023,1758303932481,-480.0,0.0002117,2]
[386457024,1758303932501,-480.0,0.0002117,2]
[386457025,1758303932523,-480.0,0.0002117,2]
[386457026,1758303932544,-480.0,0.0002117,2]
[386457027,1758303932565,-480.0,0.0002117,2]
[386457028,1758303932585,-480.0,0.0002117,2]
[386457029,1758303932608,-480.0,0.0002117,2]
[386457030,1758303932629,-480.0,0.0002117,2]
[386457031,1758303932648,-480.0,0.0002117,2]
[386457032,1758303932668,-480.0,0.0002117,2]
[386457033,1758303932687,-480.0,0.0002117,2]
[386457034,1758303932706,-480.0,0.0002117,2]
[386457035,1758303932726,-480.0,0.0002117,2]
[386457036,1758303932744,-480.0,0.0002117,2]
[386457037,1758303932764,-438.4639532,0.0002117,2]
[386457038,1758303932784,-480.0,0.0002117,2]
[386457039,1758303932803,-480.0,0.0002117,2]
[386457040,1758303932823,-480.0,0.0002117,2]
[386457041,1758303932842,-316.93877388,0.0002117,2]
[386457042,1758303932861,-480.0,0.0002117,2]
[386457043,1758303932880,-480.0,0.0002117,2]
[386457044,1758303932900,-480.0,0.0002117,2]
[386457045,1758303932922,-480.0,0.0002117,2]
[386457046,1758303932942,-480.0,0.0002117,2]
[386457047,1758303932961,-480.0,0.0002117,2]
[386457048,1758303932980,-480.0,0.0002117,2]
[386457049,1758303933000,-480.0,0.0002117,2]
[386457050,1758303933020,-480.0,0.0002117,2]
[386457051,1758303933041,-480.0,0.0002117,2]
[386457052,1758303933064,-480.0,0.0002117,2]
[386457053,1758303933084,-480.0,0.0002117,2]
[386457054,1758303933105,-480.0,0.0002117,2]
[386457055,1758303933125,-480.0,0.0002117,2]
[386457056,1758303933146,-480.0,0.0002117,2]
[386457057,1758303933164,-480.0,0.0002117,2]
[386457058,1758303933185,-480.0,0.0002117,2]
[386457059,1758303933205,-480.0,0.0002117,2]
[386457060,1758303933226,-480.0,0.0002117,2]
[386457061,1758303933246,-480.0,0.0002117,2]
[386457062,1758303933266,-480.0,0.0002117,2]
[386457063,1758303933286,-487.76211868,0.0002117,2]
[386457064,1758303933308,-480.0,0.0002117,2]
[386457065,1758303933328,-480.0,0.0002117,2]
[386457066,1758303933349,-480.0,0.0002117,2]
[386457067,1758303933368,-480.0,0.0002117,2]
[386457068,1758303933388,-480.0,0.0002117,2]
[386457070,1758303933409,-480.0,0.0002117,2]
[386457071,1758303933430,-480.0,0.0002117,2]
[386457072,1758303933450,-480.0,0.0002117,2]
[386457073,1758303933471,-480.0,0.0002117,2]
[386457074,1758303933491,-480.0,0.0002117,2]
[386457075,1758303933511,-480.0,0.0002117,2]
[386457076,1758303933531,-480.0,0.0002117,2]
[386457077,1758303933551,-322.990968,0.0002117,2]
[386457078,1758303933571,-481.33795533,0.0002117,2]
[386457079,1758303933591,-480.0,0.0002117,2]
[386457080,1758303933610,-480.0,0.0002117,2]
[386457081,1758303933748,-480.0,0.0002117,2]
[386457082,1758303933769,-480.0,0.0002117,2]
[386457083,1758303933790,-480.0,0.0002117,2]
[386457084,1758303933813,-480.0,0.0002117,2]
[386457085,1758303933835,-480.0,0.0002117,2]
[386457086,1758303933855,-480.85181,0.0002117,2]
[386457087,1758303933877,-480.0,0.0002117,2]
[386457088,1758303933897,-480.0,0.0002117,2]
[386457089,1758303933919,-480.0,0.0002117,2]
[386457090,1758303933940,-458.21343822,0.0002117,2]
[386457091,1758303933962,-480.0,0.0002117,2]
[386457092,1758303933982,-480.0,0.0002117,2]
[386457093,1758303934005,-480.0,0.0002117,2]
[386457094,1758303934026,-480.0,0.0002117,2]
[386457095,1758303934047,-283.66648347,0.0002117,2]
[386457096,1758303934070,-480.0,0.0002117,2]
[386457097,1758303934091,-480.0,0.0002117,2]
[386457098,1758303934111,-480.0,0.0002117,2]
[386457099,1758303934132,-480.0,0.0002117,2]
[386457100,1758303934153,-480.0,0.0002117,2]
[386457101,1758303934174,-480.0,0.0002117,2]
[386457102,1758303934195,-480.0,0.0002117,2]
[386457103,1758303934217,-464.76289573,0.0002117,2]
[386457104,1758303934238,-480.0,0.0002117,2]
[386457105,1758303934257,-150.76819703,0.0002117,2]
[386457106,1758303934278,-480.0,0.0002117,2]
[386457107,1758303934298,-480.0,0.0002117,2]
[386457108,1758303934319,-480.0,0.0002117,2]
[386457109,1758303934341,-480.0,0.0002117,2]
[386457110,1758303934362,-480.0,0.0002117,2]
[386457111,1758303934382,-480.0,0.0002117,2]
[386457112,1758303934402,-480.0,0.0002117,2]
[386457113,1758303934423,-480.0,0.0002117,2]
[386457115,1758303934444,-480.0,0.0002117,2]
[386457116,1758303934465,-515.47371595,0.0002117,2]
[386457117,1758303934485,-617.10670223,0.0002117,2]
[386457118,1758303934505,-480.0,0.0002117,2]
[386457119,1758303934529,-480.0,0.0002117,2]
[386457120,1758303934551,-480.0,0.0002117,2]
[386457121,1758303934570,-542.95687036,0.0002117,2]
[386457122,1758303934590,-480.0,0.0002117,2]
[386457123,1758303934610,-480.0,0.0002117,2]
[386457124,1758303934631,-520.94514331,0.0002117,2]
[386457125,1758303934651,-480.0,0.0002117,2]
[386457126,1758303934671,-449.38583312,0.0002117,2]
[386457127,1758303934691,-484.97180734,0.0002117,2]
[386457128,1758303934712,-480.0,0.0002117,2]
[386457129,1758303934734,-480.0,0.0002117,2]
[386457130,1758303934756,-464.76289573,0.0002117,2]
[386457131,1758303934777,-480.0,0.0002117,2]
[386457132,1758303934798,-480.0,0.0002117,2]
[386457134,1758303934820,-484.70807865,0.0002117,2]
[386457135,1758303934842,-481.62186975,0.0002117,2]
[386457136,1758303934863,-480.0,0.0002117,2]
[386457137,1758303934883,-480.0,0.0002117,2]
[386457138,1758303934905,-215.41060912,0.0002117,2]
[386457139,1758303934929,-508.85,0.0002117,2]
[386457140,1758303934950,-480.0,0.0002117,2]
[386457141,1758303934971,-480.0,0.0002117,2]
[386457142,1758303934992,-480.0,0.0002117,2]
[386457143,1758303935014,-480.0,0.0002117,2]
[386457144,1758303935034,-480.0,0.0002117,2]
[386457145,1758303935055,-480.0,0.0002117,2]
[386457146,1758303935076,-480.0,0.0002117,2]
[386457147,1758303935097,-480.0,0.0002117,2]
[386457148,1758303935119,-480.0,0.0002117,2]
[386457149,1758303935140,-480.0,0.0002117,2]
[386457150,1758303935160,-483.75788683,0.0002117,2]
[386457151,1758303935180,-480.0,0.0002117,2]
[386457152,1758303935200,-480.0,0.0002117,2]
[386457153,1758303935221,-480.0,0.0002117,2]
[386457154,1758303935242,-480.0,0.0002117,2]
[386457155,1758303935262,-425.80550749,0.0002117,2]
[386457156,1758303935281,-589.09506302,0.0002117,2]
[386457157,1758303935303,-480.0,0.0002117,2]
[386457158,1758303935323,-480.0,0.0002117,2]
[386457159,1758303935343,-480.0,0.0002117,2]
[386457160,1758303935364,-480.0,0.0002117,2]
[386457161,1758303935385,-480.0,0.0002117,2]
[386457162,1758303935405,-480.0,0.0002117,2]
[386457163,1758303935425,-480.0,0.0002117,2]
[386457164,1758303935445,-480.0,0.0002117,2]
[386457165,1758303935466,-480.0,0.0002117,2]
[386457166,1758303935486,-480.0,0.0002117,2]
[386457167,1758303935505,-339.01910237,0.0002117,2]
[386457168,1758303935526,-480.0,0.0002117,2]
[386457169,1758303935547,-480.0,0.0002117,2]
[386457170,1758303935570,-480.0,0.0002117,2]
[386457171,1758303935591,-480.0,0.0002117,2]
[386457172,1758303935612,-480.0,0.0002117,2]
[386457173,1758303935632,-480.0,0.0002117,2]
[386457174,1758303935654,-480.0,0.0002117,2]
[386457175,1758303935675,-480.0,0.0002117,2]
[386457176,1758303935695,-480.0,0.0002117,2]
[386457177,1758303935717,-480.0,0.0002117,2]
[386457178,1758303935738,-480.0,0.0002117,2]
[386457179,1758303935760,-480.0,0.0002117,2]
[386457180,1758303935781,-480.0,0.0002117,2]
[386457181,1758303935803,-480.0,0.0002117,2]
[386457182,1758303935824,-480.0,0.0002117,2]
[386457183,1758303935845,-480.0,0.0002117,2]
[386457184,1758303935865,-480.0,0.0002117,2]
[386457185,1758303935886,-480.0,0.0002117,2]
[386457186,1758303935906,-480.0,0.0002117,2]
[386457187,1758303935929,-480.0,0.0002117,2]
[386457188,1758303935949,-480.0,0.0002117,2]
[386457189,1758303935973,-480.0,0.0002117,2]
[386457190,1758303935993,-480.0,0.0002117,2]
[386457191,1758303936018,-480.0,0.00021171,2]
[386457192,1758303936039,-500.0,0.00021171,2]
[386457193,1758303936062,-500.0,0.00021171,2]
[386457194,1758303936084,-480.0,0.00021171,2]
[386457195,1758303936105,-490.50530443,0.00021172,2]
[386457196,1758303936126,-480.0,0.00021172,2]
[386457197,1758303936147,-480.0,0.00021172,2]
[386457198,1758303936166,-469.61158345,0.00021172,2]
[386457199,1758303936187,-480.0,0.00021172,2]
[386457200,1758303936207,-218.75796744,0.00021172,2]
[386457201,1758303936228,-480.0,0.00021172,2]
[386457202,1758303936248,-480.0,0.00021172,2]
[386457203,1758303936272,-480.0,0.00021172,2]
[386457204,1758303936294,-480.0,0.00021172,2]
[386457205,1758303936315,-480.0,0.00021172,2]
[386457206,1758303936337,-486.56315369,0.00021172,2]
[386457207,1758303936357,-480.0,0.00021175,2]
[386457208,1758303936378,-480.0,0.00021175,2]
[386457209,1758303936397,-480.0,0.00021175,2]
[386457210,1758303936417,-480.0,0.00021175,2]
[386457211,1758303936436,-480.0,0.00021175,2]
[386457212,1758303936456,-480.0,0.00021175,2]
[386457213,1758303936476,-480.0,0.00021175,2]
[386457214,1758303936496,-480.0,0.00021175,2]
[386457215,1758303936516,-480.0,0.00021175,2]
[386457216,1758303936535,-480.0,0.00021175,2]
[386457217,1758303936556,-480.0,0.00021175,2]
[386457218,1758303936577,-480.0,0.00021275,2]
[386457219,1758303936597,-480.0,0.00021373,2]
[386457220,1758303936618,-1802.96,0.00021373,2]
[386457221,1758303936639,-480.0,0.00021373,2]
[386457222,1758303936660,-1034.62,0.00021373,2]
[386457223,1758303936681,-3577.51,0.00021373,2]
[386457224,1758303936704,-480.0,0.00021373,2]
[386457225,1758303936725,-480.0,0.00021374,2]
[386457226,1758303936745,-751.18,0.00021433,3]
[386457227,1758303936767,-480.0,0.00021442,2]
[386457228,1758303936788,-480.0,0.00021442,2]
[386457229,1758303936809,-781.41,0.00021442,2]
[386457230,1758303936830,-480.0,0.00021442,2]
[386457231,1758303936965,-501.29,0.00021442,2]
[386457232,1758303936987,-480.0,0.00021442,2]
[386457233,1758303937009,-480.0,0.00021442,2]
[386457234,1758303937031,-434.46364808,0.00021442,2]
[386457235,1758303937053,-480.0,0.00021442,2]
[386457236,1758303937075,-480.0,0.00021442,2]
[386457237,1758303937096,-579.03,0.00021442,2]
[386457238,1758303937119,-480.0,0.00021442,2]
[386457239,1758303937141,-956.19,0.00021443,2]
[386457240,1758303937163,-567.97,0.00021443,2]
[386457241,1758303937184,-289.72168381,0.00021443,2]
[386457244,1758304028167,-300.0,0.00021167,2]
[386457245,1758304028189,-480.0,0.00021168,2]
[386457246,1758304028209,-480.0,0.00021168,2]
[386457247,1758304028229,-480.0,0.00021168,2]
[386457248,1758304028250,-480.0,0.00021168,2]
[386457249,1758304028270,-153.05,0.00021168,2]
[386457250,1758304028290,-461.57291672,0.00021168,2]
[386457251,1758304028312,-1218.0,0.00021168,2]
[386457252,1758304028334,-862.81,0.00021168,2]
[386457253,1758304028354,-480.0,0.00021168,2]
[386457254,1758304028375,-480.0,0.00021168,2]
[386457255,1758304028396,-480.0,0.00021168,2]
[386457256,1758304028418,-480.0,0.00021169,2]
[386457257,1758304028438,-480.0,0.00021169,2]
[386457258,1758304028458,-361.0,0.00021169,2]
[386457259,1758304028478,-587.91,0.00021169,2]
[386457260,1758304028499,-480.0,0.00021169,2]
[386457261,1758304028519,-441.57047349,0.00021169,2]
[386457262,1758304028539,-1202.5,0.00021169,2]
[386457263,1758304028558,-480.0,0.0002117,2]
[386457264,1758304028578,-480.0,0.00021275,2]
[386457265,1758304028599,-375.6,0.00021364,3]
[386457266,1758304028621,-507.9,0.00021373,2]
[386457267,1758304028642,-480.0,0.00021442,2]
[386457268,1758304028663,-480.0,0.00021442,2]
[386457269,1758304028687,-480.0,0.00021442,2]
[386457270,1758304028710,-1218.0,0.00021442,2]
[386457271,1758304028732,-862.81,0.00021442,2]
[386457272,1758304028753,-480.0,0.00021442,2]
[386457273,1758304028775,-480.0,0.00021442,2]
[386457274,1758304028795,-480.0,0.00021443,2]
[386457275,1758304028816,-510.07896304,0.00021443,2]
[386457276,1758304028836,-480.0,0.00021443,2]
[386457277,1758304028857,-480.0,0.00021443,2]
[386457278,1758304028878,-480.0,0.00021443,2]
[386457279,1758304028898,-480.0,0.00021443,2]
[386457280,1758304028919,-480.0,0.00021443,2]
[386457281,1758304028940,-480.0,0.00021443,2]
[386457282,1758304028961,-522.06,0.00021443,2]
[386457283,1758304028984,-480.0,0.00021443,2]
[386457284,1758304029013,-480.0,0.00021443,2]
[386457285,1758304029037,-480.0,0.00021443,2]
[386457286,1758304029062,-480.0,0.00021443,2]
[386457287,1758304029087,-480.0,0.00021443,2]
[386457288,1758304029109,-480.0,0.00021443,2]
[386457289,1758304029131,-587.91,0.00021443,2]
[386457290,1758304029152,-480.0,0.00021443,2]
[386457291,1758304029174,-1202.5,0.00021443,2]
[386457292,1758304029196,-536.62,0.00021444,2]
[386457293,1758304029216,-497.46314115,0.00021444,2]
[386457294,1758304029236,-480.0,0.00021444,2]
[386457295,1758304029256,-480.0,0.00021444,2]
[386457296,1758304029276,-480.0,0.00021444,2]
[386457297,1758304029296,-480.0,0.00021444,2]
[386457298,1758304029318,-480.0,0.00021444,2]
[386457299,1758304029340,-480.0,0.00021444,2]
[386457300,1758304029361,-480.0,0.00021444,2]
[386457301,1758304029382,-480.0,0.00021444,2]
[386457302,1758304029403,-480.0,0.00021444,2]
[386457303,1758304029423,-480.0,0.00021444,2]
[386457304,1758304029442,-480.0,0.00021446,2]
[386457305,1758304029461,-574.77574721,0.00021547,2]
[386457306,1758304029484,-480.0,0.00021549,2]
[386457307,1758304029503,-179.10065671,0.00021646,2]
[386457308,1758304029525,-1802.96,0.00021647,2]
[386457309,1758304029545,-480.0,0.00021647,2]
[386457310,1758304029566,-1034.62,0.00021647,2]
[386457311,1758304029587,-3577.51,0.00021647,2]
[386457312,1758304029607,-480.0,0.00021647,2]
[386457313,1758304029628,-507.9,0.00021647,2]
[386457314,1758304029651,-480.0,0.00021716,2]
[386457315,1758304029672,-480.0,0.00021716,2]
[386457316,1758304029694,-501.29,0.00021716,2]
[386457317,1758304029716,-480.0,0.00021716,2]
[386457318,1758304029738,-480.0,0.00021716,2]
[386457319,1758304029758,-480.0,0.00021716,2]
[386457320,1758304029779,-205.65801127,0.00021716,2]
[386457321,1758304029800,-579.03,0.00021716,2]
[386457322,1758304029821,-480.0,0.00021716,2]
[386457323,1758304029846,-480.0,0.00021716,2]
[386457324,1758304029867,-480.0,0.00021716,2]
[386457325,1758304029890,-480.0,0.00021716,2]
[386457326,1758304029911,-862.81,0.00021716,2]
[386457327,1758304029933,-1218.0,0.00021716,2]
[386457328,1758304029953,-480.0,0.00021716,2]
[386457329,1758304029975,-480.0,0.00021716,2]
[386457330,1758304029997,-567.97,0.00021717,2]
[386457331,1758304030020,-480.0,0.00021717,2]
[386457332,1758304030040,-480.0,0.00021717,2]
[386457333,1758304030060,-480.0,0.00021717,2]
[386457334,1758304030081,-522.06,0.00021717,2]
[386457335,1758304030102,-480.0,0.00021717,2]
[386457336,1758304030122,-480.0,0.00021717,2]
[386457337,1758304030143,-480.0,0.00021717,2]
[386457338,1758304030164,-480.0,0.00021717,2]
[386457339,1758304030183,-480.0,0.00021717,2]
[386457340,1758304030204,-587.91,0.00021717,2]
[386457341,1758304030224,-480.0,0.00021717,2]
[386457342,1758304030244,-1202.5,0.00021717,2]
[386457343,1758304030265,-480.0,0.00021718,2]
[386457344,1758304030285,-480.0,0.00021718,2]
[386457345,1758304030305,-480.0,0.00021718,2]
[386457346,1758304030326,-480.0,0.00021718,2]
[386457347,1758304030346,-480.0,0.00021718,2]
[386457348,1758304030365,-500.0,0.00021746,2]
[386457349,1758304030386,-480.0,0.00021823,2]
[386457350,1758304030406,-4310.19203364,0.0002191,2]
[386457351,1758304030427,-1802.96,0.00021921,2]
[386457352,1758304030448,-480.0,0.00021921,2]
[386457353,1758304030469,-1034.62,0.00021921,2]
[386457354,1758304030490,-3577.51,0.00021921,2]
[386457355,1758304030516,-480.0,0.00021921,2]
[386457356,1758304030536,-507.9,0.00021921,2]
[386457357,1758304030556,-480.0,0.0002199,2]
[386457358,1758304030577,-480.0,0.0002199,2]
[386457359,1758304030597,-501.29,0.0002199,2]
[386457360,1758304030618,-480.0,0.0002199,2]
[386457361,1758304030639,-480.0,0.0002199,2]
[386457362,1758304030660,-579.03,0.0002199,2]
[386457363,1758304030681,-480.0,0.0002199,2]
[386457364,1758304030701,-480.0,0.0002199,2]
[386457365,1758304030722,-480.0,0.0002199,2]
[386457366,1758304030743,-862.81,0.0002199,2]
[386457367,1758304030766,-1218.0,0.0002199,2]
[386457368,1758304030786,-480.0,0.0002199,2]
[386457369,1758304030807,-18.85632177,0.0002199,2]
[386457370,1758304034131,-461.14367823,0.0002199,2]
[386457371,1758304034155,-567.97,0.00021991,2]
[386457372,1758304034176,-480.0,0.00021991,2]
[386457373,1758304034198,-480.0,0.00021991,2]
[386457374,1758304034220,-522.06,0.00021991,2]
[386457375,1758304034241,-480.0,0.00021991,2]
[386457376,1758304034261,-480.0,0.00021991,2]
[386457377,1758304034282,-480.0,0.00021991,2]
[386457378,1758304034429,-587.91,0.00021991,2]
[386457379,1758304034450,-480.0,0.00021991,2]
[386457380,1758304034471,-1202.5,0.00021991,2]
[386457381,1758304034490,-480.0,0.00021992,2]
[386457382,1758304034509,-480.0,0.00021992,2]
[386457383,1758304034527,-480.0,0.00021992,2]
[386457384,1758304034546,-480.0,0.00021992,2]
[386457385,1758304034566,-480.0,0.00021992,2]
[386457386,1758304034584,-4407.53,0.00022,7]
[386457387,1758304034604,-480.0,0.00022097,2]
[386457388,1758304034622,-2130.27775549,0.00022165,2]
[386457389,1758304034644,-1802.96,0.00022195,2]
[386457390,1758304034664,-480.0,0.00022195,2]
[386457391,1758304034684,-1034.62,0.00022195,2]
[386457392,1758304034705,-3067.41039928,0.00022195,2]
[386457393,1758304034737,-510.09960072,0.00022195,2]
[386457394,1758304034759,-507.9,0.00022195,2]
[386457395,1758304034778,-1035.32734443,0.00022226,2]
[386457396,1758304034797,-500.0,0.00022226,2]
[386457397,1758304034816,-500.0,0.00022226,2]
[386457398,1758304034835,-500.0,0.00022226,2]
[386457399,1758304034856,-502.04385139,0.00022226,2]
[386457400,1758304034879,-260.56227526,0.00022226,2]
[386457401,1758304034899,-500.0,0.00022226,2]
[386457402,1758304034920,-500.0,0.00022226,2]
[386457403,1758304034939,-500.0,0.00022226,2]
[386457404,1758304034959,-500.0,0.00022226,2]
[386457405,1758304034978,-500.0,0.00022226,2]
[386457406,1758304034997,-500.0,0.00022226,2]
[386457407,1758304035021,-500.0,0.00022226,2]
[386457408,1758304035040,-500.0,0.00022226,2]
[386457409,1758304035060,-500.0,0.00022226,2]
[386457410,1758304035080,-500.0,0.00022226,2]
[386457411,1758304035100,-500.0,0.00022226,2]
[386457412,1758304035122,-480.0,0.00022264,2]
[386457413,1758304035143,-480.0,0.00022264,2]
[386457414,1758304035164,-501.29,0.00022264,2]
[386457415,1758304035185,-480.0,0.00022264,2]
[386457416,1758304035206,-480.0,0.00022264,2]
[386457417,1758304035228,-579.03,0.00022264,2]
[386457418,1758304035248,-480.0,0.00022264,2]
[386457419,1758304035269,-480.0,0.00022264,2]
[386457420,1758304035290,-480.0,0.00022264,2]
[386457421,1758304035312,-862.81,0.00022264,2]
[386457422,1758304035334,-1218.0,0.00022264,2]
[386457423,1758304035354,-480.0,0.00022264,2]
[386457424,1758304035373,-480.0,0.00022264,2]
[386457425,1758304035395,-567.97,0.00022265,2]
[386457426,1758304035416,-480.0,0.00022265,2]
[386457427,1758304035436,-480.0,0.00022265,2]
[386457428,1758304035458,-522.06,0.00022265,2]
[386457429,1758304035478,-480.0,0.00022265,2]
[386457430,1758304035499,-480.0,0.00022265,2]